bitfinex/quotes_BTCUSD_20250105
["timestamp","ask_amount","ask_price","bid_price","bid_amount"]
[1736042556850,0.07564911,98170.0,98169.0,1.08255698]
[1736042557256,0.07564911,98170.0,98169.0,0.86796739]
[1736042557592,0.07564911,98170.0,98169.0,0.89916854]
[1736042558723,0.07564911,98170.0,98169.0,0.86796739]
[1736042559488,0.07564911,98170.0,98169.0,0.89916785]
[1736042560096,0.07564911,98170.0,98169.0,0.86796739]
[1736042560292,0.07564911,98170.0,98169.0,0.89916815]
[1736042561285,0.07564911,98170.0,98169.0,0.86796739]
[1736042569047,0.07564911,98170.0,98169.0,0.89916834]
[1736042569877,0.07564911,98170.0,98169.0,0.86796739]
[1736042571202,0.12094911,98170.0,98169.0,0.63431739]
[1736042571456,0.32094911,98170.0,98169.0,0.63431739]
[1736042571652,0.32094911,98170.0,98169.0,0.81769651]
[1736042572073,0.32094911,98170.0,98169.0,0.81669651]
[1736042572248,0.32094911,98170.0,98169.0,0.81769651]
[1736042572689,0.32094911,98170.0,98169.0,0.81669651]
[1736042572898,0.32294911,98170.0,98169.0,0.63331739]
[1736042573580,0.32294911,98170.0,98169.0,0.63631739]
[1736042574217,0.32094911,98170.0,98169.0,0.63631739]
[1736042574604,0.32094911,98170.0,98169.0,0.64431739]
[1736042575016,0.32094911,98170.0,98169.0,0.63631739]
[1736042575413,0.32094911,98170.0,98169.0,0.64031739]
[1736042575769,0.32094911,98170.0,98169.0,0.63631739]
[1736042575979,0.32094911,98170.0,98169.0,0.64231739]
[1736042576189,0.32094911,98170.0,98169.0,0.63931739]
[1736042576564,0.32094911,98170.0,98169.0,0.64231739]
[1736042577193,0.32094911,98170.0,98169.0,0.63931739]
[1736042577404,0.32094911,98170.0,98169.0,0.63531739]
[1736042577814,0.32094911,98170.0,98169.0,0.64231739]
[1736042577998,0.32094911,98170.0,98169.0,0.63531739]
[1736042578543,0.32094911,98170.0,98169.0,0.63331739]
[1736042578763,0.32094911,98170.0,98169.0,0.63831739]
[1736042579170,0.32094911,98170.0,98169.0,0.63331739]
[1736042579544,0.32094911,98170.0,98169.0,0.63531739]
[1736042580133,0.32094911,98170.0,98169.0,0.63331739]
[1736042580359,0.32094911,98170.0,98169.0,0.63531739]
[1736042580564,0.32094911,98170.0,98169.0,0.64031739]
[1736042580918,0.32094911,98170.0,98169.0,0.63531739]
[1736042581122,0.32094911,98170.0,98169.0,0.64031739]
[1736042582364,0.22094911,98170.0,98169.0,0.64031739]
[1736042582581,0.12094911,98170.0,98169.0,0.64031739]
[1736042582764,0.22094911,98170.0,98169.0,0.64031739]
[1736042583564,0.12094911,98170.0,98169.0,0.64031739]
[1736042584247,8.54e-05,98170.0,98169.0,0.64031739]
[1736042585263,8.54e-05,98170.0,98169.0,0.63831739]
[1736042585467,8.54e-05,98170.0,98169.0,0.63531739]
[1736042585668,8.54e-05,98170.0,98169.0,0.64031739]
[1736042587296,8.54e-05,98170.0,98169.0,0.64723739]
[1736042618981,8.54e-05,98170.0,98169.0,0.67023739]
[1736042619191,8.54e-05,98170.0,98169.0,0.85143185]
[1736042619967,8.54e-05,98170.0,98169.0,0.84943185]
[1736042620171,0.0010854,98170.0,98169.0,0.84443185]
[1736042620345,0.0030854,98170.0,98169.0,0.84443185]
[1736042620749,0.0020854,98170.0,98169.0,0.84443185]
[1736042620961,0.0020854,98170.0,98169.0,0.84643185]
[1736042621310,8.54e-05,98170.0,98169.0,0.84643185]
[1736042621492,8.54e-05,98170.0,98169.0,0.85243185]
[1736042621981,8.54e-05,98170.0,98169.0,0.84643185]
[1736042622571,8.54e-05,98170.0,98169.0,0.84443185]
[1736042623128,8.54e-05,98170.0,98169.0,0.84643185]
[1736042623594,8.54e-05,98170.0,98169.0,0.84543185]
[1736042623803,8.54e-05,98170.0,98169.0,0.84743185]
[1736042625601,8.54e-05,98170.0,98169.0,0.84643185]
[1736042625822,8.54e-05,98170.0,98169.0,0.84743185]
[1736042626142,8.54e-05,98170.0,98169.0,0.84543185]
[1736042626592,8.54e-05,98170.0,98169.0,0.84843185]
[1736042628683,8.54e-05,98170.0,98169.0,0.84743185]
[1736042629114,8.54e-05,98170.0,98169.0,0.84843185]
[1736042630041,8.54e-05,98170.0,98169.0,0.84543185]
[1736042630213,8.54e-05,98170.0,98169.0,0.84403452]
[1736042639293,8.54e-05,98170.0,98169.0,0.88479552]
[1736042639762,8.54e-05,98170.0,98169.0,0.88079552]
[1736042640152,8.54e-05,98170.0,98169.0,0.88379552]
[1736042641752,8.54e-05,98170.0,98169.0,0.88479552]
[1736042644033,8.54e-05,98170.0,98169.0,0.88179552]
[1736042644217,8.54e-05,98170.0,98169.0,0.88479552]
[1736042644973,8.54e-05,98170.0,98169.0,0.88379552]
[1736042645183,8.54e-05,98170.0,98169.0,0.88479552]
[1736042647692,8.54e-05,98170.0,98169.0,0.84403452]
[1736042648111,8.54e-05,98170.0,98169.0,0.84103452]
[1736042648568,8.54e-05,98170.0,98169.0,0.84403452]
[1736042648808,8.54e-05,98170.0,98169.0,0.84303452]
[1736042649042,8.54e-05,98170.0,98169.0,0.84403452]
[1736042649651,8.54e-05,98170.0,98169.0,0.84303452]
[1736042649867,8.54e-05,98170.0,98169.0,0.84403452]
[1736042650467,8.54e-05,98170.0,98169.0,0.84103452]
[1736042650716,8.54e-05,98170.0,98169.0,0.84403452]
[1736042678639,8.54e-05,98170.0,98169.0,1.11921562]
[1736042686195,8.54e-05,98170.0,98169.0,1.11821562]
[1736042686393,8.54e-05,98170.0,98169.0,1.11521562]
[1736042686638,8.54e-05,98170.0,98169.0,1.11621562]
[1736042686779,8.54e-05,98170.0,98169.0,1.11821562]
[1736042686979,8.54e-05,98170.0,98169.0,1.11521562]
[1736042687187,8.54e-05,98170.0,98169.0,1.11621562]
[1736042687399,8.54e-05,98170.0,98169.0,1.11921562]
[1736042687593,8.54e-05,98170.0,98169.0,1.11621562]
[1736042687800,8.54e-05,98170.0,98169.0,1.11521562]
[1736042687997,8.54e-05,98170.0,98169.0,1.11721562]
[1736042688245,8.54e-05,98170.0,98169.0,1.11621562]
[1736042689503,8.54e-05,98170.0,98169.0,1.11521562]
[1736042689735,8.54e-05,98170.0,98169.0,1.11621562]
[1736042690137,8.54e-05,98170.0,98169.0,1.11921562]
[1736042690330,8.54e-05,98170.0,98169.0,1.11821562]
[1736042690693,8.54e-05,98170.0,98169.0,1.11621562]
[1736042690892,8.54e-05,98170.0,98169.0,1.11821562]
[1736042691105,8.54e-05,98170.0,98169.0,1.11521562]
[1736042691486,8.54e-05,98170.0,98169.0,1.11921562]
[1736042691685,8.54e-05,98170.0,98169.0,1.11621562]
[1736042692099,8.54e-05,98170.0,98169.0,1.11821562]
[1736042692295,8.54e-05,98170.0,98169.0,1.11621562]
[1736042692761,8.54e-05,98170.0,98169.0,1.11521562]
[1736042693138,8.54e-05,98170.0,98169.0,1.11621562]
[1736042694239,8.54e-05,98170.0,98169.0,1.11921562]
[1736042694640,8.54e-05,98170.0,98169.0,1.11621562]
[1736042694993,8.54e-05,98170.0,98169.0,1.11821562]
[1736042698474,0.0812854,98170.0,98169.0,1.11129562]
[1736042698716,0.0812854,98170.0,98169.0,1.11817562]
[1736042701269,0.0812854,98170.0,98169.0,0.84299452]
[1736042703692,8.54e-05,98170.0,98169.0,0.84299452]
[1736042710055,8.54e-05,98170.0,98169.0,1.11817562]
[1736042719532,8.54e-05,98170.0,98169.0,0.84299452]
[1736042730644,8.54e-05,98170.0,98169.0,0.83992452]
[1736042732234,8.54e-05,98170.0,98169.0,0.84805168]
[1736042734973,8.54e-05,98170.0,98169.0,0.84690836]
[1736042742363,8.54e-05,98170.0,98169.0,0.82390836]
[1736042810392,8.54e-05,98170.0,98169.0,0.80919268]
[1736042810599,8.54e-05,98170.0,98169.0,0.82390662]
[1736042817933,8.54e-05,98170.0,98169.0,0.81702662]
[1736042818146,0.08065864,98170.0,98169.0,0.79271216]
[1736042819546,0.22665864,98170.0,98169.0,0.63583216]
[1736042819758,0.3253854,98170.0,98169.0,0.53305916]
[1736042820161,0.3253854,98170.0,98169.0,0.71641339]
[1736042820793,0.3253854,98170.0,98169.0,0.70636613]
[1736042821813,0.3253854,98170.0,98169.0,0.5300119]
[1736042822762,0.3253854,98170.0,98169.0,0.5330119]
[1736042822964,0.3253854,98170.0,98169.0,0.5260119]
[1736042823360,0.3253854,98170.0,98169.0,0.5290119]
[1736042823765,0.3253854,98170.0,98169.0,0.53783932]
[1736042826400,0.3253854,98170.0,98169.0,0.53483932]
[1736042826596,0.3253854,98170.0,98169.0,0.52883932]
[1736042826875,0.3253854,98170.0,98169.0,0.53183932]
[1736042827110,0.3253854,98170.0,98169.0,0.53783932]
[1736042828461,0.3253854,98170.0,98169.0,0.64182564]
[1736042836996,0.2253854,98170.0,98169.0,0.64182564]
[1736042837439,0.2253854,98170.0,98169.0,0.66214421]
[1736042838132,0.1793854,98170.0,98169.0,0.66214421]
[1736042838396,0.1000854,98170.0,98169.0,0.66214421]
[1736042838625,8.54e-05,98170.0,98169.0,0.66214421]
[1736042840868,8.54e-05,98170.0,98169.0,0.66902421]
[1736042841236,8.54e-05,98170.0,98169.0,0.66602421]
[1736042841438,8.54e-05,98170.0,98169.0,0.66902421]
[1736042842100,8.54e-05,98170.0,98169.0,0.66002421]
[1736042842301,0.0020854,98170.0,98169.0,0.66002421]
[1736042845565,8.54e-05,98170.0,98169.0,0.66002421]
[1736042846406,0.0010854,98170.0,98169.0,0.66002421]
[1736042847737,8.54e-05,98170.0,98169.0,0.66002421]
[1736042848112,0.0010854,98170.0,98169.0,0.66002421]
[1736042848534,8.54e-05,98170.0,98169.0,0.66002421]
[1736042869711,8.54e-05,98176.0,98170.0,0.557456]
[1736042869914,0.00021649,98176.0,98175.0,0.10398632]
[1736042870089,0.00021649,98176.0,98175.0,0.12452339]
[1736042872036,0.00121649,98176.0,98175.0,0.12452339]
[1736042874790,0.00121649,98176.0,98175.0,0.13474747]
[1736042876225,0.13241649,98176.0,98175.0,0.14162747]
[1736042884557,0.00121649,98176.0,98175.0,0.14162747]
[1736042888896,0.00121649,98176.0,98175.0,0.27914939]
[1736042890739,0.00121649,98176.0,98175.0,0.27226939]
[1736042890972,0.00121649,98176.0,98175.0,0.27914939]
[1736042892482,0.00121649,98176.0,98175.0,0.14162747]
[1736042893644,0.00121649,98176.0,98175.0,0.23328146]
[1736042894967,0.00121649,98176.0,98175.0,0.14162747]
[1736042901356,0.00121649,98176.0,98175.0,0.2332903]
[1736042902339,0.00121649,98176.0,98175.0,0.64162747]
[1736042904505,0.00121649,98176.0,98175.0,0.73329057]
[1736042914502,0.00121649,98176.0,98175.0,0.64162747]
[1736042918727,0.06274317,98179.0,98176.0,0.203715]
[1736042918875,0.06274317,98179.0,98178.0,0.203711]
[1736042919088,0.06274317,98179.0,98178.0,0.30769732]
[1736042919258,0.06274317,98179.0,98178.0,0.32822158]
[1736042920958,0.06374317,98179.0,98178.0,0.33510158]
[1736042921375,0.06274317,98179.0,98178.0,0.33510158]
[1736042921575,0.06374317,98179.0,98178.0,0.33510158]
[1736042926626,0.06382857,98179.0,98178.0,0.33510158]
[1736042928766,0.06382857,98179.0,98178.0,0.33490973]
[1736042929821,0.06282857,98179.0,98178.0,0.33490973]
[1736042930070,0.06382857,98179.0,98178.0,0.33490973]
[1736042930426,0.06382857,98179.0,98178.0,0.4265901]
[1736042932205,0.06382857,98179.0,98178.0,0.9265901]
[1736042932988,0.06282857,98179.0,98178.0,0.9265901]
[1736042933192,0.06382857,98179.0,98178.0,0.9265901]
[1736042933370,0.06382857,98179.0,98178.0,0.83490973]
[1736042934274,0.06282857,98179.0,98178.0,0.83490973]
[1736042934618,0.06382857,98179.0,98178.0,0.83490973]
[1736042936455,0.06382857,98179.0,98178.0,0.97243165]
[1736042938906,0.06382857,98179.0,98178.0,0.97260245]
[1736042939638,0.0010854,98179.0,98178.0,0.97260245]
[1736042941270,0.0010854,98179.0,98178.0,0.83508053]
[1736042942463,0.0010854,98179.0,98178.0,0.97260245]
[1736042943656,0.0010854,98179.0,98178.0,0.83508053]
[1736042945716,0.0010854,98179.0,98178.0,0.97260245]
[1736042946168,0.0010854,98179.0,98178.0,1.17678749]
[1736042946369,0.1,98196.0,98190.0,0.203686]
[1736042946543,0.1,98196.0,98190.0,0.30767232]
[1736042946744,0.1,98196.0,98190.0,0.32818557]
[1736042947180,0.0783854,98205.0,98190.0,0.50806557]
[1736042947383,0.13716187,98204.0,98190.0,0.53924032]
[1736042947583,0.0783854,98205.0,98190.0,0.53924032]
[1736042948404,8.54e-05,98205.0,98190.0,0.69706493]
[1736042948577,8.54e-05,98205.0,98190.0,1.03924032]
[1736042949194,8.54e-05,98205.0,98190.0,1.04224032]
[1736042949603,8.54e-05,98205.0,98190.0,1.04324032]
[1736042949943,8.54e-05,98205.0,98190.0,1.04224032]
[1736042950341,8.54e-05,98205.0,98190.0,1.04324032]
[1736042950542,8.54e-05,98205.0,98190.0,1.06380376]
[1736042950958,0.0783,98197.0,98190.0,1.03262901]
[1736042951564,0.0783,98197.0,98190.0,1.04300684]
[1736042953067,0.0783,98197.0,98190.0,1.18013976]
[1736042956166,8.54e-05,98205.0,98190.0,1.18013976]
[1736042956344,0.0783,98203.0,98190.0,1.18013976]
[1736042958012,0.0783,98203.0,98190.0,1.04300684]
[1736042958832,8.54e-05,98205.0,98199.0,0.353668]
[1736042959041,8.54e-05,98205.0,98199.0,0.45765432]
[1736042959169,8.54e-05,98205.0,98199.0,0.47815068]
[1736042961298,0.00027661,98200.0,98199.0,0.47915068]
[1736042961619,0.00027661,98200.0,98199.0,0.47815068]
[1736042962011,0.00027661,98200.0,98199.0,0.50415068]
[1736042962422,0.00027661,98200.0,98199.0,0.50115068]
[1736042962829,0.00027661,98200.0,98199.0,0.50215068]
[1736042963215,0.00027661,98200.0,98199.0,0.50115068]
[1736042963732,0.00027661,98200.0,98199.0,0.50415068]
[1736042963932,0.00027661,98200.0,98199.0,0.50115068]
[1736042964339,0.00027661,98200.0,98199.0,0.50415068]
[1736042964481,0.00027661,98200.0,98199.0,0.50515068]
[1736042970368,0.00027661,98200.0,98199.0,0.50215068]
[1736042970689,0.00027661,98200.0,98199.0,0.50515068]
[1736042971037,0.00027661,98200.0,98199.0,0.50215068]
[1736042971440,0.00027661,98200.0,98199.0,0.50715068]
[1736042971838,0.00027661,98200.0,98199.0,0.50915068]
[1736042973511,0.00027661,98200.0,98199.0,0.50315068]
[1736042973710,0.00027661,98200.0,98199.0,0.50715068]
[1736042974069,0.00027661,98200.0,98199.0,0.50915068]
[1736042974501,0.00027661,98200.0,98199.0,0.50715068]
[1736042974701,0.00027661,98200.0,98199.0,0.50115068]
[1736042974957,0.00027661,98200.0,98199.0,0.50815068]
[1736042977462,0.08321741,98201.0,98199.0,0.50115068]
[1736042977663,0.03445551,98201.0,98200.0,0.27698632]
[1736042978037,0.03445551,98201.0,98200.0,0.29746917]
[1736042978538,0.03445551,98201.0,98200.0,0.38880078]
[1736042979510,0.03445551,98201.0,98200.0,0.41994126]
[1736042980396,0.03445551,98201.0,98200.0,0.42194126]
[1736042980887,0.03445551,98201.0,98200.0,0.42594126]
[1736042981055,0.03445551,98201.0,98200.0,0.32860965]
[1736042981267,0.03445551,98201.0,98200.0,0.33060965]
[1736042981464,0.03445551,98201.0,98200.0,0.33660965]
[1736042981700,0.03445551,98201.0,98200.0,0.33460965]
[1736042981830,0.03445551,98201.0,98200.0,0.32860965]
[1736042982034,0.03445551,98201.0,98200.0,0.33660965]
[1736042983346,0.03445551,98201.0,98200.0,0.33460965]
[1736042983497,0.03445551,98201.0,98200.0,0.32860965]
[1736042983704,0.03445551,98201.0,98200.0,0.33060965]
[1736042983920,0.03445551,98201.0,98200.0,0.33660965]
[1736042984140,0.03445551,98201.0,98200.0,0.32860965]
[1736042984477,0.03445551,98201.0,98200.0,0.47360707]
[1736042984801,0.03445551,98201.0,98200.0,0.46760707]
[1736042985008,0.03445551,98201.0,98200.0,0.47260707]
[1736042985122,0.03445551,98201.0,98200.0,0.47060707]
[1736042985351,0.03445551,98201.0,98200.0,0.47260707]
[1736042985563,0.03445551,98201.0,98200.0,0.48258633]
[1736042986023,0.03445551,98201.0,98200.0,0.34558891]
[1736042987174,0.02376461,98201.0,98200.0,0.34558891]
[1736042987855,0.02376461,98201.0,98200.0,0.35246891]
[1736042990144,0.02376461,98201.0,98200.0,0.34558891]
[1736042990296,0.02376461,98201.0,98200.0,0.35246891]
[1736042990542,0.02376461,98201.0,98200.0,0.58102377]
[1736042991458,0.02376461,98201.0,98200.0,0.35246891]
[1736042993122,0.01681648,98201.0,98200.0,0.34558891]
[1736042993295,0.01681648,98201.0,98200.0,0.34546891]
[1736042993634,0.01681648,98201.0,98200.0,0.35346891]
[1736042993966,0.01681648,98201.0,98200.0,0.34746891]
[1736042994129,0.01681648,98201.0,98200.0,0.34546891]
[1736042994339,0.01681648,98201.0,98200.0,0.34558891]
[1736042994541,0.01681648,98201.0,98200.0,0.35246891]
[1736042996258,0.01681648,98201.0,98200.0,0.34546891]
[1736042996622,0.09801648,98201.0,98200.0,0.32258891]
[1736042996822,0.09801648,98201.0,98200.0,0.52224486]
[1736042997225,0.09801648,98201.0,98200.0,0.52324486]
[1736042997474,0.09801648,98201.0,98200.0,0.52424486]
[1736042997941,0.09801648,98201.0,98200.0,0.29532843]
[1736042999065,0.09801648,98201.0,98200.0,0.38690148]
[1736042999657,0.09801648,98201.0,98200.0,0.38590148]
[1736042999866,0.09801648,98201.0,98200.0,0.38690148]
[1736043000196,0.09801648,98201.0,98200.0,0.38390148]
[1736043000404,0.09801648,98201.0,98200.0,0.38690148]
[1736043000986,0.09801648,98201.0,98200.0,0.38707228]
[1736043001767,0.09801648,98201.0,98200.0,0.29549923]
[1736043002365,0.09801648,98201.0,98200.0,0.29449923]
[1736043002799,0.09801648,98201.0,98200.0,0.29549923]
[1736043003095,0.09801648,98201.0,98200.0,0.29249923]
[1736043003328,0.09801648,98201.0,98200.0,0.29149923]
[1736043003546,0.09801648,98201.0,98200.0,0.29449923]
[1736043003837,0.09801648,98201.0,98200.0,0.29249923]
[1736043004050,0.09801648,98201.0,98200.0,0.29349923]
[1736043004260,0.09801648,98201.0,98200.0,0.38506833]
[1736043004462,0.09801648,98201.0,98200.0,0.38406833]
[1736043005476,0.09801648,98201.0,98200.0,0.29249923]
[1736043005674,0.09801648,98201.0,98200.0,0.29149923]
[1736043008561,0.09801648,98201.0,98200.0,0.79149923]
[1736043010139,0.19911793,98201.0,98200.0,0.64149923]
[1736043011083,0.19911793,98201.0,98200.0,0.63461923]
[1736043012347,0.09911793,98201.0,98200.0,0.63461923]
[1736043012580,0.19911793,98201.0,98200.0,0.63461923]
[1736043013975,0.09911793,98201.0,98200.0,0.63461923]
[1736043036313,0.09801648,98201.0,98200.0,0.63461923]
[1736043040929,0.01681648,98201.0,98200.0,0.63461923]
[1736043044394,0.01681648,98201.0,98200.0,0.63561923]
[1736043046037,0.01681648,98201.0,98200.0,0.63461923]
[1736043046447,0.01681648,98201.0,98200.0,0.63561923]
[1736043046610,0.01681648,98201.0,98200.0,0.63461923]
[1736043047153,0.01681648,98201.0,98200.0,0.63561923]
[1736043053598,0.01681648,98201.0,98200.0,0.64249923]
[1736043054304,0.01681648,98201.0,98200.0,0.73305947]
[1736043055803,0.01681648,98201.0,98200.0,0.64149923]
[1736043056191,0.01681648,98201.0,98200.0,0.64249923]
[1736043059704,0.01681648,98201.0,98200.0,0.8841071]
[1736043059908,0.01681648,98201.0,98200.0,0.8831071]
[1736043060110,0.01681648,98201.0,98200.0,0.91428448]
[1736043061063,0.01681648,98201.0,98200.0,0.82267661]
[1736043061274,0.01681648,98201.0,98200.0,0.79149923]
[1736043061948,0.01681648,98201.0,98200.0,0.82267246]
[1736043062336,0.01681648,98201.0,98200.0,0.79149923]
[1736043066988,0.01681648,98201.0,98200.0,0.79449923]
[1736043067308,0.01681648,98201.0,98200.0,0.79149923]
[1736043067519,0.01681648,98201.0,98200.0,0.9745851]
[1736043068281,0.01681648,98201.0,98200.0,0.9755851]
[1736043068638,0.01681648,98201.0,98200.0,0.9785851]
[1736043069766,0.01681648,98201.0,98200.0,0.9775851]
[1736043069997,0.01681648,98201.0,98200.0,0.9745851]
[1736043070168,0.01681648,98201.0,98200.0,0.9755851]
[1736043070579,0.01681648,98201.0,98200.0,0.9785851]
[1736043070984,0.01681648,98201.0,98200.0,0.9775851]
[1736043071477,0.01681648,98201.0,98200.0,0.9785851]
[1736043072285,0.01681648,98201.0,98200.0,0.9755851]
[1736043072491,0.01681648,98201.0,98200.0,0.79249923]
[1736043072922,0.01681648,98201.0,98200.0,0.79149923]
[1736043073099,0.01681648,98201.0,98200.0,0.79549923]
[1736043073418,0.01681648,98201.0,98200.0,0.79249923]
[1736043073591,0.01681648,98201.0,98200.0,0.79149923]
[1736043073800,0.01681648,98201.0,98200.0,0.79449923]
[1736043074096,0.01681648,98201.0,98200.0,0.79549923]
[1736043074540,0.01681648,98201.0,98200.0,0.81849923]
[1736043074866,0.01681648,98201.0,98200.0,1.0015851]
[1736043075473,0.01681648,98201.0,98200.0,0.9985851]
[1736043075781,0.01681648,98201.0,98200.0,1.0025851]
[1736043076412,0.01681648,98201.0,98200.0,1.0015851]
[1736043076958,0.01681648,98201.0,98200.0,1.0025851]
[1736043077265,0.01681648,98201.0,98200.0,0.9975851]
[1736043077444,0.01681648,98201.0,98200.0,1.0035851]
[1736043078344,8.54e-05,98205.0,98201.0,0.557326]
[1736043078515,8.54e-05,98205.0,98204.0,0.25398632]
[1736043078921,8.54e-05,98205.0,98204.0,0.2774217]
[1736043079485,8.54e-05,98205.0,98204.0,0.3004217]
[1736043079824,8.54e-05,98205.0,98204.0,0.3315741]
[1736043080038,8.54e-05,98205.0,98204.0,0.3345741]
[1736043080514,8.54e-05,98205.0,98204.0,0.3355741]
[1736043082782,8.54e-05,98205.0,98204.0,0.3396491]
[1736043083155,8.54e-05,98205.0,98204.0,0.3386491]
[1736043083377,8.54e-05,98205.0,98204.0,0.3366491]
[1736043083928,8.54e-05,98205.0,98204.0,0.3356491]
[1736043084282,8.54e-05,98205.0,98204.0,0.3386491]
[1736043085532,8.54e-05,98205.0,98204.0,0.3366491]
[1736043085734,8.54e-05,98205.0,98204.0,0.3386491]
[1736043085955,8.54e-05,98205.0,98204.0,0.3396491]
[1736043086137,8.54e-05,98205.0,98204.0,0.3366491]
[1736043086339,8.54e-05,98205.0,98204.0,0.3396491]
[1736043086513,8.54e-05,98205.0,98204.0,0.3386491]
[1736043086726,8.54e-05,98205.0,98204.0,0.3366491]
[1736043087049,8.54e-05,98205.0,98204.0,0.3396491]
[1736043087341,8.54e-05,98205.0,98204.0,0.3386491]
[1736043087495,8.54e-05,98205.0,98204.0,0.3396491]
[1736043088594,8.54e-05,98205.0,98204.0,0.3366491]
[1736043088908,8.54e-05,98205.0,98204.0,0.3386491]
[1736043089225,8.54e-05,98205.0,98204.0,0.3396491]
[1736043089624,8.54e-05,98205.0,98204.0,0.3356491]
[1736043090033,8.54e-05,98205.0,98204.0,0.3416491]
[1736043090821,8.54e-05,98205.0,98204.0,0.3375741]
[1736043091587,8.54e-05,98205.0,98204.0,0.30900622]
[1736043092922,8.54e-05,98205.0,98204.0,0.30988622]
[1736043093123,8.54e-05,98205.0,98204.0,0.31188622]
[1736043093267,8.54e-05,98205.0,98204.0,0.31788622]
[1736043095799,8.54e-05,98205.0,98204.0,0.31805702]
[1736043098713,8.54e-05,98205.0,98204.0,0.81805702]
[1736043103548,0.00015437,98208.0,98205.0,0.173]
[1736043103756,0.00015437,98208.0,98207.0,0.27698632]
[1736043103940,0.00015437,98208.0,98207.0,0.33156014]
[1736043105553,0.00015437,98208.0,98207.0,0.33356014]
[1736043105955,0.00015437,98208.0,98207.0,0.33756014]
[1736043108034,0.00015437,98208.0,98207.0,0.34444014]
[1736043112185,0.00015437,98208.0,98207.0,0.36503941]
[1736043120021,0.00015437,98208.0,98207.0,0.36303941]
[1736043120362,0.00015437,98208.0,98207.0,0.36321021]
[1736043121193,0.00015437,98208.0,98207.0,0.35921021]
[1736043121596,0.00015437,98208.0,98207.0,0.36421021]
[1736043121792,0.00015437,98208.0,98207.0,0.36621021]
[1736043124344,0.00015437,98208.0,98207.0,0.36121021]
[1736043124759,0.00015437,98208.0,98207.0,0.36321021]
[1736043124971,0.00015437,98208.0,98207.0,0.36521021]
[1736043126800,0.00015437,98208.0,98207.0,0.36321021]
[1736043127548,0.00015437,98208.0,98207.0,0.35921021]
[1736043127881,0.00015437,98208.0,98207.0,0.36421021]
[1736043128335,0.00015437,98208.0,98207.0,0.35921021]
[1736043128527,0.00015437,98208.0,98207.0,0.86321021]
[1736043128934,0.00015437,98208.0,98207.0,0.85833021]
[1736043129190,0.00015437,98208.0,98207.0,0.86521021]
[1736043129414,0.00015437,98208.0,98207.0,0.86321021]
[1736043129901,0.00015437,98208.0,98207.0,0.86521021]
[1736043131089,0.00015437,98208.0,98207.0,0.83533021]
[1736043131303,0.12955437,98208.0,98207.0,0.84221021]
[1736043131480,0.12955437,98208.0,98207.0,0.83533021]
[1736043131683,0.12955437,98208.0,98207.0,0.84221021]
[1736043163170,0.12955437,98208.0,98207.0,0.83533021]
[1736043163375,0.12955437,98208.0,98207.0,0.84221021]
[1736043163530,0.12955437,98208.0,98207.0,0.80417781]
[1736043163735,0.12955437,98208.0,98207.0,0.65417781]
[1736043164346,0.12955437,98208.0,98207.0,0.80417781]
[1736043165635,0.12955437,98208.0,98207.0,0.80217781]
[1736043167054,0.12955437,98208.0,98207.0,0.80417781]
[1736043167300,0.12955437,98208.0,98207.0,0.80017781]
[1736043167443,0.12955437,98208.0,98207.0,0.79817781]
[1736043167664,0.12955437,98208.0,98207.0,0.80217781]
[1736043167869,0.12955437,98208.0,98207.0,0.79817781]
[1736043198808,0.12955437,98208.0,98207.0,0.64817781]
[1736043203570,0.82455582,98208.0,98207.0,0.62757854]
[1736043203776,0.82345437,98208.0,98207.0,0.62757854]
[1736043273309,0.69405437,98208.0,98207.0,0.62757854]
[1736043274927,0.49405437,98208.0,98207.0,0.62757854]
[1736043278106,0.49505437,98208.0,98207.0,0.71918978]
[1736043278507,0.49405437,98208.0,98207.0,0.71918978]
[1736043278975,0.49505437,98208.0,98207.0,0.71918978]
[1736043279468,0.49505437,98208.0,98207.0,0.62757854]
[1736043279666,0.49405437,98208.0,98207.0,0.62757854]
[1736043280186,0.00015437,98208.0,98207.0,0.62757854]
[1736043282846,0.00015437,98208.0,98207.0,0.77757854]
[1736043283052,0.00015437,98208.0,98207.0,0.85327854]
[1736043284097,0.00015437,98208.0,98207.0,0.82985712]
[1736043284291,0.00015437,98208.0,98207.0,0.85358704]
[1736043284722,0.00015437,98208.0,98207.0,1.03680953]
[1736043285074,0.00015437,98208.0,98207.0,1.03780953]
[1736043286210,0.00015437,98208.0,98207.0,0.85458704]
[1736043287347,0.00015437,98208.0,98207.0,0.99178315]
[1736043288556,0.00015437,98208.0,98207.0,0.85458704]
[1736043289586,0.00015437,98208.0,98207.0,0.94601294]
[1736043292144,0.00015437,98208.0,98207.0,0.87031294]
[1736043292352,0.00015437,98208.0,98207.0,0.77888704]
[1736043295518,0.00015437,98208.0,98207.0,0.78576704]
[1736043306117,0.00015437,98208.0,98207.0,0.77888704]
[1736043306283,0.04955437,98208.0,98207.0,0.78576704]
[1736043307056,0.04955437,98208.0,98207.0,0.78476704]
[1736043307460,0.04955437,98208.0,98207.0,0.78576704]
[1736043309709,0.04955437,98208.0,98207.0,0.78476704]
[1736043311119,0.04955437,98208.0,98207.0,0.77788704]
[1736043319647,0.04955437,98208.0,98207.0,0.77888704]
[1736043320158,0.04955437,98208.0,98207.0,0.77988704]
[1736043320555,0.12865437,98208.0,98207.0,0.77988704]
[1736043322498,0.12865437,98208.0,98207.0,0.77788704]
[1736043323341,0.12865437,98208.0,98207.0,0.86931294]
[1736043325881,0.12865437,98208.0,98207.0,0.87031294]
[1736043326101,0.12865437,98208.0,98207.0,0.77888704]
[1736043328617,0.12865437,98208.0,98207.0,0.77788704]
[1736043331923,0.12865437,98208.0,98207.0,0.76988616]
[1736043334505,0.12865437,98208.0,98207.0,0.86131206]
[1736043339302,0.12865437,98208.0,98207.0,0.76988616]
[1736043348945,0.12865437,98208.0,98207.0,0.90708227]
[1736043350702,0.00015437,98208.0,98207.0,0.90708227]
[1736043351714,0.00015437,98208.0,98207.0,0.76988616]
[1736043354341,0.00015437,98208.0,98207.0,0.90708227]
[1736043355283,0.00015437,98208.0,98207.0,0.91396227]
[1736043355676,0.00015437,98208.0,98207.0,0.77676616]
[1736043364821,0.00015437,98208.0,98207.0,0.86842285]
[1736043366109,0.00015437,98208.0,98207.0,0.77676616]
[1736043368091,0.00015437,98208.0,98207.0,0.76988616]
[1736043368852,0.00015437,98208.0,98207.0,0.86153257]
[1736043371083,0.00015437,98208.0,98207.0,0.76988616]
[1736043373864,0.00015437,98208.0,98207.0,0.86153559]
[1736043375017,0.00015437,98208.0,98207.0,0.76988616]
[1736043377600,0.00015437,98208.0,98207.0,0.86153561]
[1736043378933,0.00015437,98208.0,98207.0,0.76988616]
[1736043383768,0.00015437,98208.0,98207.0,0.90708227]
[1736043385067,0.00015437,98208.0,98207.0,0.76988616]
[1736043386615,0.00015437,98208.0,98207.0,0.90708227]
[1736043387831,0.00015437,98208.0,98207.0,0.76988616]
[1736043389410,0.00015437,98208.0,98207.0,0.90708227]
[1736043390769,0.00015437,98208.0,98207.0,0.76988616]
[1736043392154,0.00015437,98208.0,98207.0,0.86153367]
[1736043393069,0.00015437,98208.0,98207.0,0.84580463]
[1736043393432,0.00015437,98208.0,98207.0,0.86153202]
[1736043393817,0.00015437,98208.0,98207.0,0.76988451]
[1736043396188,0.00015437,98208.0,98207.0,0.86152864]
[1736043402585,0.00015437,98208.0,98207.0,0.76988451]
[1736043404965,0.00015437,98208.0,98207.0,0.86151356]
[1736043411623,0.00015437,98208.0,98207.0,0.76988451]